fUST/lending_fUST_20240802
["ID","MTS","AMOUNT","RATE_DAILY","PERIOD"]
[333852687,1722562247223,-500.0,0.00013698,2]
[333852688,1722562247233,-500.0,0.00013698,2]
[333852689,1722562247242,-500.0,0.00013698,2]
[333852690,1722562247252,-500.0,0.00013698,2]
[333852691,1722562247262,-315.32000538,0.00013698,2]
[333852692,1722562247271,-536.81620935,0.00013698,2]
[333852693,1722562247281,-513.65390348,0.00013698,2]
[333852695,1722562247292,-500.0,0.00013698,2]
[333852697,1722562247303,-483.32709819,0.00013698,2]
[333852699,1722562247312,-167.29886717,0.00013698,2]
[333852701,1722562247322,-416.69339855,0.00013698,2]
[333852703,1722562247331,-513.65390348,0.00013698,2]
[333852704,1722562247341,-500.0,0.00013698,2]
[333852705,1722562247350,-513.65390348,0.00013698,2]
[333852706,1722562247359,-513.65390348,0.00013698,2]
[333852707,1722562247369,-296.55422792,0.00013698,2]
[333852708,1722562247378,-513.65390348,0.00013698,2]
[333852709,1722562247388,-513.65390348,0.00013698,2]
[333852710,1722562247398,-513.65390348,0.00013698,2]
[333852711,1722562247407,-513.65390348,0.00013698,2]
[333852712,1722562247417,-513.65390348,0.00013698,2]
[333852713,1722562247427,-513.65390348,0.00013698,2]
[333852714,1722562247438,-513.65390348,0.00013698,2]
[333852715,1722562247449,-513.65390348,0.00013698,2]
[333852716,1722562247464,-513.65390348,0.00013698,2]
[333852717,1722562247473,-513.65390348,0.00013698,2]
[333852718,1722562247483,-471.95852983,0.00013698,2]
[333852719,1722562247498,-41.69537365,0.00013698,2]
[333852720,1722562247508,-513.65390348,0.00013698,2]
[333852721,1722562247518,-72.13050063,0.00013698,2]
[333852722,1722562247531,-313.53912706,0.00013698,2]
[333852723,1722562247543,-127.98427579,0.00013698,2]
[333852724,1722562247553,-513.65390348,0.00013698,2]
[333852725,1722562247563,-79.58168573,0.00013698,2]
[333852726,1722562247576,-434.07221775,0.00013698,2]
[333852727,1722562247586,-513.65390348,0.00013698,2]
[333852728,1722562247597,-513.65390348,0.00013698,2]
[333852729,1722562247606,-536.98163475,0.00013698,2]
[333852730,1722562247617,-536.98163475,0.00013698,2]
[333852731,1722562247627,-205.3441957,0.00013698,2]
[333852732,1722562247640,-331.63743905,0.00013698,2]
[333852733,1722562247649,-536.98163475,0.00013698,2]
[333852734,1722562247659,-536.98163475,0.00013698,2]
[333852735,1722562247669,-208.93294225,0.00013698,2]
[333852739,1722562295779,2049.35108,0.00027,120]
[333852755,1722562749395,535.38,0.00025,60]
[333852765,1722563006478,306.0,0.00027,120]
[333852767,1722563170250,150.0,0.00027,120]
[333852768,1722563177113,153.0,0.00027,120]
[333852787,1722563432788,-459.60057371,0.00012119,2]
[333852788,1722563432798,-241.29600917,0.00012332,2]
[333852790,1722563438909,-349.18561803,0.00012332,2]
[333852791,1722563438919,-162.526089,0.00012429,2]
[333852792,1722563438930,-162.526089,0.00012591,2]
[333852793,1722563438942,-162.526089,0.00012752,2]
[333852794,1722563438951,-162.526089,0.00012914,2]
[333852795,1722563438960,-159.28154,0.00012986,2]
[333852796,1722563438970,-206.9081725,0.00013,2]
[333852797,1722563438981,-162.526089,0.00013076,2]
[333852798,1722563438992,-293.0,0.00013099,2]
[333852799,1722563439002,-206.9081725,0.000131,2]
[333852800,1722563439013,-237.30666268,0.000131,2]
[333852801,1722563439026,-68.69333732,0.000131,2]
[333852802,1722563439038,-153.0,0.000131,2]
[333852803,1722563439047,-153.0,0.000131,2]
[333852804,1722563439056,-306.0,0.000131,2]
[333852805,1722563439065,-294.1746601,0.000131,2]
[333852806,1722563439075,-413.816345,0.000131,2]
[333852807,1722563439084,-391.65293233,0.00013597,2]
[333852808,1722563439093,-391.65293233,0.00013598,2]
[333852809,1722563439102,-265.74342693,0.00013598,2]
[333852810,1722563439113,-452.49427774,0.00013598,2]
[333852811,1722563439123,-391.65293233,0.00013598,2]
[333852812,1722563439132,-306.8640767,0.00013615,2]
[333852813,1722563439141,-500.0,0.00013687,2]
[333852814,1722563439151,-500.0,0.00013687,2]
[333852815,1722563439160,-500.0,0.00013687,2]
[333852816,1722563439170,-1064.04290662,0.00013688,2]
[333852817,1722563439271,-16222.66399116,0.00013688,2]
[333852818,1722563439284,-67551.70127723,0.00013688,2]
[333852823,1722563440870,-312.2633,0.00013688,2]
[333852868,1722563443894,-348.89256572,0.00013688,2]
[333852869,1722563443905,-1117.20743428,0.00013688,2]
[333852870,1722563443917,-2386.07474856,0.00013688,2]
[333852894,1722563501596,416.74733232,9.999e-05,2]
[333852904,1722564352317,5308.86949971,9.999e-05,2]
[333852905,1722564393050,2124.28682051,9.999e-05,2]
[333852906,1722564396624,598.0,0.00027,120]
[333852910,1722564518421,500.0,0.00027,120]
[333852940,1722564638124,-159.6864,0.00012986,2]
[333852941,1722564638134,-154.76075169,0.00013,2]
[333852942,1722564638144,-367.80729453,0.00013365,2]
[333852943,1722564638154,-300.0,0.00013466,2]
[333852944,1722564638163,-20.24378221,0.00013488,2]
[333852946,1722564638432,-279.75621779,0.00013488,2]
[333852947,1722564638443,-464.24378221,0.00013598,2]
[333852949,1722564638456,-182.17015202,0.00013598,2]
[333852951,1722564638466,-294.43529831,0.00013598,2]
[333852953,1722564638477,-153.0,0.000136,2]
[333852955,1722564638487,-589.517827,0.000136,2]
[333852957,1722564638499,-300.0,0.00013679,2]
[333852959,1722564638510,-500.0,0.00013686,2]
[333852961,1722564638520,-500.0,0.00013687,2]
[333852963,1722564638531,-500.0,0.00013687,2]
[333852965,1722564638541,-500.0,0.00013687,2]
[333852967,1722564638550,-500.0,0.00013687,2]
[333852969,1722564638559,-10857.86788049,0.00013688,5]
[333852971,1722564638569,-29348.78094901,0.00013688,2]
[333853005,1722564640333,-5947.63666042,0.00013688,2]
[333853007,1722564640346,-1546.1335093,0.00013688,2]
[333853008,1722564640358,-6427.67999714,0.00013688,2]
[333853009,1722564640371,-1153.63893998,0.00013688,2]
[333853010,1722564640383,-26936.78988845,0.00013688,2]
[333853034,1722564646527,-2646.15,0.00013688,2]
[333853035,1722564646539,-534.50782487,0.00013688,2]
[333853052,1722564959673,155.0,0.0001002,2]
[333853053,1722564964685,155.0,0.0001002,2]
[333853054,1722564969674,155.0,0.0001002,2]
[333853055,1722564974736,155.0,0.0001002,2]
[333853057,1722564979189,155.0,0.0001002,2]
[333853058,1722564983793,155.0,0.0001002,2]
[333853059,1722564988340,155.0,0.0001002,2]
[333853060,1722564993269,155.0,0.0001002,2]
[333853061,1722564998439,155.0,0.0001002,2]
[333853062,1722565010897,228.70771626,0.0001002,2]
[333853063,1722565277773,157.24515839,9.999e-05,2]
[333853064,1722565421028,2000.0,0.00027,120]
[333853067,1722565692214,-154.97529376,0.00012119,2]
[333853068,1722565692238,-159.987733,0.00012986,2]
[333853069,1722565692262,-1500.0,0.00013,2]
[333853070,1722565692290,-367.80729453,0.00013198,2]
[333853071,1722565692315,-650.75536969,0.00013598,2]
[333853072,1722565692340,-36587.1936541,0.00013678,2]
[333853073,1722565692365,-18293.5968271,0.00013679,2]
[333853074,1722565692390,-6434.71215663,0.00013688,5]
[333853075,1722565692415,-135850.97167119,0.00013688,2]
[333853078,1722565745233,326.36996696,9.999e-05,2]
[333853116,1722565832175,-3291.99793293,0.0001212,2]
[333853118,1722565832188,-1071.08208521,0.0001212,2]
[333853119,1722565832199,-868.49,0.0001212,2]
[333853120,1722565832210,-1035.93633802,0.0001212,2]
[333853121,1722565832222,-2610.54855304,0.0001212,2]
[333853122,1722565832233,-2705.11078013,0.0001212,2]
[333853137,1722565838483,-14469.7578588,0.0001212,2]
[333853139,1722565838497,-3889.2,0.0001212,2]
[333853153,1722565840245,-304.71152666,0.0001212,2]
[333853154,1722565840375,-6444.2,0.0001212,2]
[333853155,1722565840387,-700.28774559,0.0001212,2]
[333853156,1722565840399,-15929.82098873,0.0001212,2]
[333853157,1722565840411,-11716.06652728,0.0001212,2]
[333853158,1722565840420,-2434.61050605,0.00013598,2]
[333853159,1722565840429,-500.0,0.00013697,2]
[333853160,1722565840439,-500.0,0.00013697,2]
[333853161,1722565840448,-500.0,0.00013697,2]
[333853162,1722565840457,-500.0,0.00013697,2]
[333853163,1722565840467,-500.0,0.00013697,2]
[333853164,1722565840476,-500.0,0.00013697,2]
[333853165,1722565840486,-500.0,0.00013697,2]
[333853166,1722565840496,-500.0,0.00013697,2]
[333853167,1722565840506,-500.0,0.00013697,2]
[333853168,1722565840516,-500.0,0.00013697,2]
[333853169,1722565840526,-500.0,0.00013697,2]
[333853170,1722565840546,-500.0,0.00013697,2]
[333853171,1722565840556,-14180.27965242,0.00013698,5]
[333853172,1722565840565,-3217.35607831,0.00013698,5]
[333853173,1722565840575,-503.78865461,0.00013698,2]
[333853174,1722565840585,-502.01764721,0.00013698,2]
[333853175,1722565840594,-452.33143706,0.00013698,2]
[333853176,1722565840604,-500.0,0.00013698,2]
[333853177,1722565840613,-500.0,0.00013698,2]
[333853178,1722565840623,-500.0,0.00013698,2]
[333853179,1722565840632,-274.33755767,0.00013698,2]
[333853180,1722565840642,-500.0,0.00013698,2]
[333853181,1722565840651,-500.0,0.00013698,2]
[333853182,1722565840661,-291.81032934,0.00013698,2]
[333853183,1722565840670,-500.0,0.00013698,2]
[333853184,1722565840680,-500.0,0.00013698,2]
[333853185,1722565840689,-500.0,0.00013698,2]
[333853186,1722565840699,-485.47251153,0.00013698,2]
[333853187,1722565840709,-500.0,0.00013698,2]
[333853188,1722565840719,-500.0,0.00013698,2]
[333853189,1722565840728,-399.2533575,0.00013698,2]
[333853190,1722565840738,-500.0,0.00013698,2]
[333853191,1722565840748,-500.0,0.00013698,2]
[333853192,1722565840757,-551.71285394,0.00013698,2]
[333853193,1722565840766,-500.0,0.00013698,2]
[333853194,1722565840775,-500.0,0.00013698,2]
[333853195,1722565840792,-500.0,0.00013698,2]
[333853196,1722565840801,-500.0,0.00013698,2]
[333853197,1722565840810,-500.0,0.00013698,2]
[333853198,1722565840819,-500.0,0.00013698,2]
[333853199,1722565840828,-500.0,0.00013698,2]
[333853200,1722565840838,-500.0,0.00013698,2]
[333853201,1722565840847,-500.0,0.00013698,2]
[333853202,1722565840856,-500.0,0.00013698,2]
[333853203,1722565840866,-500.0,0.00013698,2]
[333853204,1722565840875,-614.39360355,0.00013698,2]
[333853205,1722565840885,-500.0,0.00013698,2]
[333853206,1722565840895,-500.0,0.00013698,2]
[333853207,1722565840904,-500.0,0.00013698,2]
[333853208,1722565840913,-215.60165645,0.00013698,2]
[333853209,1722565840923,-250.049559,0.00013698,2]
[333853210,1722565840932,-500.0,0.00013698,2]
[333853211,1722565840942,-501.7351523,0.00013698,2]
[333853212,1722565840951,-151.0,0.00013698,2]
[333853213,1722565840961,-152.487019,0.00013698,2]
[333853214,1722565840971,-502.18289792,0.00013698,2]
[333853215,1722565840980,-247.59878506,0.00013698,2]
[333853216,1722565840990,-256.3836567,0.00013698,2]
[333853217,1722565840999,-501.76303475,0.00013698,2]
[333853218,1722565841009,-500.0,0.00013698,2]
[333853219,1722565841018,-151.0,0.00013698,2]
[333853220,1722565841028,-197.002828,0.00013698,2]
[333853221,1722565841040,-500.0,0.00013698,2]
[333853222,1722565841049,-500.0,0.00013698,2]
[333853223,1722565841059,-500.93685737,0.00013698,2]
[333853224,1722565841068,-501.52279869,0.00013698,2]
[333853225,1722565841077,-500.0,0.00013698,2]
[333853226,1722565841087,-500.0,0.00013698,2]
[333853227,1722565841096,-243.23330565,0.00013698,2]
[333853228,1722565841105,-500.0,0.00013698,2]
[333853229,1722565841115,-225.99842293,0.00013698,2]
[333853253,1722565843249,-274.00157707,0.00013698,2]
[333853255,1722565843259,-500.0,0.00013698,2]
[333853257,1722565843269,-500.0,0.00013698,2]
[333853259,1722565843278,-500.0,0.00013698,2]
[333853260,1722565843290,-502.21226762,0.00013698,2]
[333853261,1722565843300,-503.39450594,0.00013698,2]
[333853262,1722565843309,-151.0,0.00013698,2]
[333853263,1722565843319,-561.87302239,0.00013698,2]
[333853264,1722565843329,-151.360865,0.00013698,2]
[333853265,1722565843338,-500.0,0.00013698,2]
[333853266,1722565843348,-500.0,0.00013698,2]
[333853267,1722565843358,-500.0,0.00013698,2]
[333853268,1722565843367,-500.0,0.00013698,2]
[333853269,1722565843377,-519.68527774,0.00013698,2]
[333853270,1722565843386,-236.47248424,0.00013698,2]
[333853271,1722565843399,-263.52751576,0.00013698,2]
[333853272,1722565843408,-132.39248424,0.00013698,2]
[333853305,1722565846463,-18.97312741,0.00013698,2]
[333853306,1722565846474,-415.67426589,0.00013698,2]
[333853307,1722565846483,-500.0,0.00013698,2]
[333853308,1722565846494,-501.17306439,0.00013698,2]
[333853309,1722565846503,-504.93323018,0.00013698,2]
[333853310,1722565846512,-500.0,0.00013698,2]
[333853311,1722565846522,-500.0,0.00013698,2]
[333853312,1722565846534,-500.0,0.00013698,2]
[333853313,1722565846554,-500.0,0.00013698,2]
[333853314,1722565846564,-500.68484831,0.00013698,2]
[333853315,1722565846574,-500.86071385,0.00013698,2]
[333853316,1722565846585,-501.62976303,0.00013698,2]
[333853317,1722565846595,-501.72998075,0.00013698,2]
[333853318,1722565846604,-501.51605462,0.00013698,2]
[333853319,1722565846613,-500.0,0.00013698,2]
[333853320,1722565846623,-501.15288506,0.00013698,2]
[333853321,1722565846633,-500.0,0.00013698,2]
[333853322,1722565846643,-502.36988911,0.00013698,2]
[333853323,1722565846652,-500.0,0.00013698,2]
[333853324,1722565846661,-506.21878574,0.00013698,2]
[333853325,1722565846671,-501.54864471,0.00013698,2]
[333853326,1722565846680,-501.00209402,0.00013698,2]
[333853327,1722565846690,-531.72612339,0.00013698,2]
[333853328,1722565846699,-500.0,0.00013698,2]
[333853329,1722565846709,-500.0,0.00013698,2]
[333853330,1722565846719,-500.0,0.00013698,2]
[333853331,1722565846728,-391.1014822,0.00013698,2]
[333853332,1722565846737,-503.67649666,0.00013698,2]
[333853333,1722565846747,-501.45564701,0.00013698,2]
[333853334,1722565846757,-502.39010367,0.00013698,2]
[333853335,1722565846766,-526.03435263,0.00013698,2]
[333853336,1722565846775,-500.0,0.00013698,2]
[333853337,1722565846787,-518.05519983,0.00013698,2]
[333853338,1722565846795,-505.98100913,0.00013698,2]
[333853339,1722565846804,-501.89745755,0.00013698,2]
[333853340,1722565846813,-500.0,0.00013698,2]
[333853341,1722565846823,-500.0,0.00013698,2]
[333853342,1722565846832,-500.0,0.00013698,2]
[333853343,1722565846842,-504.85623332,0.00013698,2]
[333853344,1722565846852,-500.0,0.00013698,2]
[333853345,1722565846861,-500.18066824,0.00013698,2]
[333853346,1722565846871,-500.0,0.00013698,2]
[333853347,1722565846881,-151.0,0.00013698,2]
[333853348,1722565846890,-151.0,0.00013698,2]
[333853349,1722565846900,-151.0,0.00013698,2]
[333853350,1722565846909,-151.0,0.00013698,2]
[333853351,1722565846918,-151.0,0.00013698,2]
[333853352,1722565846928,-151.0,0.00013698,2]
[333853353,1722565846937,-151.0,0.00013698,2]
[333853354,1722565846948,-151.0,0.00013698,2]
[333853355,1722565846958,-288.2,0.00013698,2]
[333853356,1722565846968,-500.0,0.00013698,2]
[333853357,1722565846978,-500.0,0.00013698,2]
[333853358,1722565846988,-500.0,0.00013698,2]
[333853359,1722565846998,-501.80148109,0.00013698,2]
[333853360,1722565847008,-502.67773995,0.00013698,2]
[333853361,1722565847018,-540.84,0.00013698,2]
[333853362,1722565847028,-500.0,0.00013698,2]
[333853363,1722565847039,-503.59004292,0.00013698,2]
[333853364,1722565847049,-500.0,0.00013698,2]
[333853365,1722565847058,-500.0,0.00013698,2]
[333853366,1722565847068,-500.0,0.00013698,2]
[333853367,1722565847077,-500.0,0.00013698,2]
[333853368,1722565847087,-500.0,0.00013698,2]
[333853369,1722565847096,-500.0,0.00013698,2]
[333853370,1722565847106,-500.35477121,0.00013698,2]
[333853371,1722565847115,-502.54952285,0.00013698,2]
[333853372,1722565847132,-507.80985409,0.00013698,2]
[333853373,1722565847145,-500.0,0.00013698,2]
[333853374,1722565847155,-512.93514649,0.00013698,2]
[333853375,1722565847165,-500.98483587,0.00013698,2]
[333853376,1722565847174,-491.76547941,0.00013698,2]
[333853377,1722565847184,-501.33577868,0.00013698,2]
[333853378,1722565847194,-500.73324802,0.00013698,2]
[333853379,1722565847203,-500.0,0.00013698,2]
[333853380,1722565847213,-500.0,0.00013698,2]
[333853381,1722565847223,-500.50832755,0.00013698,2]
[333853382,1722565847233,-500.39401224,0.00013698,2]
[333853383,1722565847243,-500.0,0.00013698,2]
[333853384,1722565847252,-502.07040565,0.00013698,2]
[333853385,1722565847262,-617.93640919,0.00013698,2]
[333853386,1722565847271,-500.38816474,0.00013698,2]
[333853387,1722565847281,-500.0,0.00013698,2]
[333853388,1722565847292,-500.0,0.00013698,2]
[333853389,1722565847302,-500.0,0.00013698,2]
[333853390,1722565847311,-500.0,0.00013698,2]
[333853391,1722565847321,-500.0,0.00013698,2]
[333853392,1722565847331,-415.61803624,0.00013698,2]
[333853393,1722565847340,-500.0,0.00013698,2]
[333853394,1722565847351,-533.47516986,0.00013698,2]
[333853395,1722565847360,-500.0,0.00013698,2]
[333853396,1722565847370,-500.72351551,0.00013698,2]
[333853397,1722565847380,-500.0,0.00013698,2]
[333853398,1722565847389,-426.75179612,0.00013698,2]
[333853399,1722565847400,-500.0,0.00013698,2]
[333853400,1722565847409,-500.0,0.00013698,2]
[333853401,1722565847419,-500.0,0.00013698,2]
[333853402,1722565847429,-500.0,0.00013698,2]
[333853403,1722565847439,-500.0,0.00013698,2]
[333853404,1722565847448,-500.0,0.00013698,2]
[333853405,1722565847458,-501.67175073,0.00013698,2]
[333853406,1722565847468,-500.0,0.00013698,2]
[333853407,1722565847477,-500.0,0.00013698,2]
[333853408,1722565847488,-500.0,0.00013698,2]
[333853409,1722565847500,-500.0,0.00013698,2]
[333853410,1722565847511,-500.0,0.00013698,2]
[333853411,1722565847520,-501.63508155,0.00013698,2]
[333853412,1722565847533,-500.0,0.00013698,2]
[333853413,1722565847544,-484.74401599,0.00013698,2]
[333853414,1722565847555,-504.63770719,0.00013698,2]
[333853415,1722565847564,-500.0,0.00013698,2]
[333853416,1722565847574,-500.0,0.00013698,2]
[333853417,1722565847583,-497.95228517,0.00013698,2]
[333853418,1722565847593,-151.0,0.00013698,2]
[333853419,1722565847602,-151.0,0.00013698,2]
[333853420,1722565847613,-501.54703595,0.00013698,2]
[333853421,1722565847727,-151.0,0.00013698,2]
[333853422,1722565847736,-151.0,0.00013698,2]
[333853423,1722565847746,-151.0,0.00013698,2]
[333853424,1722565847755,-151.0,0.00013698,2]
[333853425,1722565847765,-151.0,0.00013698,2]
[333853426,1722565847774,-151.0,0.00013698,2]
[333853427,1722565847785,-151.0,0.00013698,2]
[333853428,1722565847795,-151.0,0.00013698,2]
[333853429,1722565847805,-151.00000002,0.00013698,2]
[333853430,1722565847814,-500.0,0.00013698,2]
[333853431,1722565847824,-468.09315407,0.00013698,2]
[333853432,1722565847833,-500.0,0.00013698,2]
[333853433,1722565847843,-500.0,0.00013698,2]
[333853434,1722565847852,-500.0,0.00013698,2]
[333853435,1722565847861,-500.0,0.00013698,2]
[333853436,1722565847870,-507.27522184,0.00013698,2]
[333853437,1722565847880,-501.43032247,0.00013698,2]
[333853438,1722565847889,-500.0,0.00013698,2]
[333853439,1722565847898,-514.63086909,0.00013698,2]
[333853440,1722565847908,-500.0,0.00013698,2]
[333853441,1722565847917,-503.0728826,0.00013698,2]
[333853442,1722565847926,-500.0,0.00013698,2]
[333853443,1722565847935,-502.19565927,0.00013698,2]
[333853444,1722565847947,-500.0,0.00013698,2]
[333853445,1722565847957,-151.0,0.00013698,2]
[333853446,1722565847967,-151.0,0.00013698,2]
[333853447,1722565847976,-151.0,0.00013698,2]
[333853448,1722565847986,-503.10199676,0.00013698,2]
[333853449,1722565847995,-151.0,0.00013698,2]
[333853450,1722565848004,-151.0,0.00013698,2]
[333853451,1722565848014,-151.0,0.00013698,2]
[333853452,1722565848023,-180.828509,0.00013698,2]
[333853453,1722565848033,-500.0,0.00013698,2]
[333853454,1722565848044,-579.45,0.00013698,2]
[333853455,1722565848053,-507.79920805,0.00013698,2]
[333853456,1722565848063,-504.15486476,0.00013698,2]
[333853457,1722565848072,-502.75024731,0.00013698,2]
[333853458,1722565848082,-500.0,0.00013698,2]
[333853459,1722565848091,-500.0,0.00013698,2]
[333853460,1722565848101,-582.51481951,0.00013698,2]
[333853461,1722565848110,-151.0,0.00013698,2]
[333853462,1722565848119,-151.0,0.00013698,2]
[333853463,1722565848129,-151.0,0.00013698,2]
[333853464,1722565848139,-151.0,0.00013698,2]
[333853465,1722565848149,-152.444213,0.00013698,2]
[333853466,1722565848158,-501.9829536,0.00013698,2]
[333853467,1722565848168,-502.28356994,0.00013698,2]
[333853468,1722565848177,-503.40796312,0.00013698,2]
[333853469,1722565848187,-500.0,0.00013698,2]
[333853470,1722565848196,-500.0,0.00013698,2]
[333853471,1722565848206,-500.0,0.00013698,2]
[333853472,1722565848216,-500.0,0.00013698,2]
[333853473,1722565848225,-474.13610924,0.00013698,2]
[333853474,1722565848234,-500.0,0.00013698,2]
[333853475,1722565848244,-500.0,0.00013698,2]
[333853476,1722565848253,-500.0,0.00013698,2]
[333853477,1722565848263,-503.4121549,0.00013698,2]
[333853478,1722565848273,-500.69137176,0.00013698,2]
[333853479,1722565848283,-500.0,0.00013698,2]
[333853480,1722565848295,-500.0,0.00013698,2]
[333853481,1722565848305,-151.0,0.00013698,2]
[333853482,1722565848314,-169.819122,0.00013698,2]
[333853483,1722565848327,-508.03885785,0.00013698,2]
[333853484,1722565848336,-500.0,0.00013698,2]
[333853485,1722565848346,-502.79825797,0.00013698,2]
[333853486,1722565848355,-500.0,0.00013698,2]
[333853487,1722565848365,-500.0,0.00013698,2]
[333853488,1722565848374,-500.0,0.00013698,2]
[333853489,1722565848384,-504.94614314,0.00013698,2]
[333853490,1722565848393,-500.0,0.00013698,2]
[333853491,1722565848403,-500.0,0.00013698,2]
[333853492,1722565848413,-500.0,0.00013698,2]
[333853493,1722565848422,-500.0,0.00013698,2]
[333853494,1722565848432,-498.04113066,0.00013698,2]
[333853495,1722565848441,-500.0,0.00013698,2]
[333853496,1722565848451,-500.0,0.00013698,2]
[333853497,1722565848460,-501.41633631,0.00013698,2]
[333853498,1722565848470,-503.92363756,0.00013698,2]
[333853499,1722565848480,-504.59361093,0.00013698,2]
[333853500,1722565848489,-500.0,0.00013698,2]
[333853501,1722565848498,-372.40019715,0.00013698,2]
[333853502,1722565848508,-500.0,0.00013698,2]
[333853503,1722565848517,-500.0,0.00013698,2]
[333853504,1722565848527,-151.464709,0.00013698,2]
[333853505,1722565848538,-500.0,0.00013698,2]
[333853506,1722565848549,-500.0,0.00013698,2]
[333853507,1722565848559,-151.0,0.00013698,2]
[333853508,1722565848568,-151.0,0.00013698,2]
[333853509,1722565848579,-151.0,0.00013698,2]
[333853510,1722565848588,-151.0,0.00013698,2]
[333853511,1722565848597,-151.0,0.00013698,2]
[333853512,1722565848607,-151.0,0.00013698,2]
[333853513,1722565848618,-151.0,0.00013698,2]
[333853514,1722565848627,-151.0,0.00013698,2]
[333853515,1722565848637,-154.826983,0.00013698,2]
[333853516,1722565848646,-500.0,0.00013698,2]
[333853517,1722565848655,-504.42114639,0.00013698,2]
[333853518,1722565848665,-500.0,0.00013698,2]
[333853519,1722565848674,-500.0,0.00013698,2]
[333853520,1722565848683,-500.0,0.00013698,2]
[333853521,1722565848693,-500.0,0.00013698,2]
[333853522,1722565848703,-500.0,0.00013698,2]
[333853523,1722565848712,-500.0,0.00013698,2]
[333853524,1722565848721,-500.0,0.00013698,2]
[333853525,1722565848731,-503.10199921,0.00013698,2]
[333853526,1722565848740,-500.0,0.00013698,2]
[333853527,1722565848749,-555.93873662,0.00013698,2]
[333853528,1722565848759,-151.0,0.00013698,2]
[333853529,1722565848768,-151.0,0.00013698,2]
[333853530,1722565848778,-151.0,0.00013698,2]
[333853531,1722565848789,-287.064305,0.00013698,2]
[333853532,1722565848799,-500.0,0.00013698,2]
[333853533,1722565848808,-500.0,0.00013698,2]
[333853534,1722565848817,-500.0,0.00013698,2]
[333853535,1722565848826,-500.0,0.00013698,2]
[333853536,1722565848836,-500.0,0.00013698,2]
[333853537,1722565848845,-151.0,0.00013698,2]
[333853538,1722565848855,-151.0,0.00013698,2]
[333853539,1722565848865,-151.0,0.00013698,2]
[333853540,1722565848875,-151.0,0.00013698,2]
[333853541,1722565848884,-509.99283621,0.00013698,2]
[333853542,1722565848894,-500.0,0.00013698,2]
[333853543,1722565848904,-151.0,0.00013698,2]
[333853544,1722565848914,-500.0,0.00013698,2]
[333853545,1722565848923,-151.0,0.00013698,2]
[333853546,1722565848933,-151.0,0.00013698,2]
[333853547,1722565848943,-151.0,0.00013698,2]
[333853548,1722565848953,-151.0,0.00013698,2]
[333853549,1722565848963,-151.0,0.00013698,2]
[333853550,1722565848972,-151.0,0.00013698,2]
[333853551,1722565848982,-151.0,0.00013698,2]
[333853552,1722565848991,-151.0,0.00013698,2]
[333853553,1722565849001,-300.741146,0.00013698,2]
[333853554,1722565849010,-501.31710204,0.00013698,2]
[333853555,1722565849020,-500.0,0.00013698,2]
[333853556,1722565849029,-500.0,0.00013698,2]
[333853557,1722565849041,-500.0,0.00013698,2]
[333853558,1722565849051,-500.0,0.00013698,2]
[333853559,1722565849061,-508.61440013,0.00013698,2]
[333853560,1722565849070,-504.00925121,0.00013698,2]
[333853561,1722565849080,-502.47423967,0.00013698,2]
[333853562,1722565849089,-502.92790312,0.00013698,2]
[333853563,1722565849099,-500.0,0.00013698,2]
[333853564,1722565849108,-500.0,0.00013698,2]
[333853565,1722565849118,-500.0,0.00013698,2]